Workbook

Sheet FS
B2: OEC
E3: Johanna Saariluoma (FI) | I3: Claudia Moser (CH) | M3: Wies Koelewijn (NL)
B4: Freestyle qualifying round | E4: Presentation/accuracy | F4: Content/degree of difficulty | G4: Musical interpretation | I4: Presentation/accuracy | J4: Content/degree of difficulty | K4: Musical interpretation | M4: Presentation/accuracy | N4: Content/degree of difficulty | O4: Musical interpretation
Q7: Presentation/accuracy | U7: Content/degree of difficulty | Y7: Musical interpretation
B14: Handler / dog | D14: Country | P14: Total
A15: 19 | B15: Marina Novoselova / Funnewf Gloria Day | D15: Russia | E15: 9.4 | F15: 9.2 | G15: 9.2 | I15: 8.9 | J15: 9 | K15: 9.4 | M15: 9 | N15: 8.5 | O15: 9 | P15: =(E15+F15+G15+I15+J15+K15+M15+N15+O15)/3 -> 27.2 | Q15: =SUM(E15+I15+M15) -> 27.3 | R15: =(Q15/30)*100 -> 91 | S15: % | T15: =IF(R15>74.9,"","IB") ->  | U15: =SUM(F15+J15+N15) -> 26.7 | V15: =(U15/30)*100 -> 89 | W15: % | X15: =IF(V15>74.9,"","IB") ->  | Y15: =SUM(G15+K15+O15) -> 27.6 | Z15: =(Y15/30)*100 -> 92 | AA15: % | AB15: =IF(Z15>74.9,"","IB") -> 
A16: 16 | B16: Vanda Gregorová/All That Brandy Gentle Mate | D16: Czech Republic | E16: 9.5 | F16: 9.2 | G16: 8.9 | I16: 8.4 | J16: 8.8 | K16: 9.1 | M16: 9.1 | N16: 8.7 | O16: 9.2 | P16: 26.96666667 | Q16: =SUM(E16+I16+M16) -> 27 | R16: =(Q16/30)*100 -> 90 | S16: % | T16: =IF(R16>74.9,"","IB") ->  | U16: =SUM(F16+J16+N16) -> 26.7 | V16: =(U16/30)*100 -> 89 | W16: % | X16: =IF(V16>74.9,"","IB") ->  | Y16: =SUM(G16+K16+O16) -> 27.2 | Z16: =(Y16/30)*100 -> 90.66666667 | AA16: % | AB16: =IF(Z16>74.9,"","IB") -> 
A17: 23 | B17: Polina Ilina / HardyHeart du Val de Vent Dore | D17: Russia | E17: 9 | F17: 8.9 | G17: 9.1 | I17: 9.2 | J17: 9 | K17: 9 | M17: 8.8 | N17: 8.4 | O17: 9 | P17: 26.8 | Q17: 27 | R17: 90 | S17: % | U17: 26.3 | V17: 87.66666667 | W17: % | Y17: 27.1 | Z17: 90.33333333 | AA17: %
A18: 3 | B18: Monika Olšovská / Arsinoé z Ríše Wa | D18: Slovakia | E18: 8.7 | F18: 8.8 | G18: 8.5 | I18: 8.9 | J18: 9 | K18: 9.2 | M18: 9 | N18: 8.7 | O18: 9.2 | P18: 26.66666667 | Q18: 26.6 | R18: 88.66666667 | S18: % | U18: 26.5 | V18: 88.33333333 | W18: % | Y18: 26.9 | Z18: 89.66666667 | AA18: %
A19: 32 | B19: Polina Ilina / Shteffi | D19: Russia | E19: 8.7 | F19: 9.3 | G19: 9.1 | I19: 8.4 | J19: 8.7 | K19: 8.8 | M19: 8.5 | N19: 8.1 | O19: 9 | P19: 26.2 | Q19: 25.6 | R19: 85.33333333 | S19: % | U19: 26.1 | V19: 87 | W19: % | Y19: 26.9 | Z19: 89.66666667 | AA19: %
A20: 12 | B20: Daniela Šišková/Aurora Piranha Rainy Love | D20: Czech Republic | E20: 9.3 | F20: 8.7 | G20: 7.5 | I20: 8.3 | J20: 8.8 | K20: 9.1 | M20: 8.9 | N20: 8.6 | O20: 9.2 | P20: 26.13333333 | Q20: 26.5 | R20: 88.33333333 | S20: % | U20: 26.1 | V20: 87 | W20: % | Y20: 25.8 | Z20: 86 | AA20: %
A21: 28 | B21: Kath Hardman / September Spice | D21: Great Britain | E21: 8 | F21: 8.9 | G21: 8.9 | I21: 8.1 | J21: 8.8 | K21: 8.7 | M21: 8.6 | N21: 8 | O21: 9 | P21: 25.66666667 | Q21: 24.7 | R21: 82.33333333 | S21: % | U21: 25.7 | V21: 85.66666667 | W21: % | Y21: 26.6 | Z21: 88.66666667 | AA21: %
A22: 46 | B22: Monika Ballerini / Cassy zum Krähenhorst | D22: Switzerland | E22: 8.4 | F22: 7.2 | G22: 8.9 | I22: 9.1 | J22: 8.2 | K22: 9.1 | M22: 8.5 | N22: 8.6 | O22: 8.7 | P22: 25.56666667 | Q22: 26 | R22: 86.66666667 | S22: % | U22: 24 | V22: 80 | W22: % | Y22: 26.7 | Z22: 89 | AA22: %
A23: 18 | B23: Linda de Smet / Eby of Sun Floch Valley | D23: Belgium | E23: 8.4 | F23: 8.1 | G23: 8.4 | I23: 8.5 | J23: 9.2 | K23: 9 | M23: 7.5 | N23: 8.5 | O23: 9 | P23: 25.53333333 | Q23: 24.4 | R23: 81.33333333 | S23: % | U23: 25.8 | V23: 86 | W23: % | Y23: 26.4 | Z23: 88 | AA23: %
A24: 36 | B24: Jules O'Dwyer / Fjurdyhoeve Flynn | D24: Belgium | E24: 8.2 | F24: 7.1 | G24: 7.3 | I24: 8.5 | J24: 9.1 | K24: 9.3 | M24: 9.1 | N24: 8.7 | O24: 9.2 | P24: 25.5 | Q24: 25.8 | R24: 86 | S24: % | U24: 24.9 | V24: 83 | W24: % | Y24: 25.8 | Z24: 86 | AA24: %
A25: 31 | B25: Lucie Smolíková/A White Head Tender Flash | D25: Czech Republic | E25: 9.2 | F25: 8.5 | G25: 7.7 | I25: 8.4 | J25: 8.2 | K25: 8.6 | M25: 8.1 | N25: 7.6 | O25: 8.7 | P25: 25 | Q25: 25.7 | R25: 85.66666667 | S25: % | U25: 24.3 | V25: 81 | W25: % | Y25: 25 | Z25: 83.33333333 | AA25: %
A26: 39 | B26: Ekatarina Myznikova / Pradas House Artist and Denser | D26: Russia | E26: 7.8 | F26: 7.3 | G26: 7.6 | I26: 8 | J26: 8.9 | K26: 9.1 | M26: 8.2 | N26: 8.9 | O26: 9 | P26: 24.93333333 | Q26: 24 | R26: 80 | S26: % | U26: 25.1 | V26: 83.66666667 | W26: % | Y26: 25.7 | Z26: 85.66666667 | AA26: %
A27: 9 | B27: Yvonne Belin / Jewel del Mulino Prudenza | D27: Switzerland | E27: 7.4 | F27: 8.9 | G27: 7.6 | I27: 7.8 | J27: 9.4 | K27: 9.3 | M27: 7.6 | N27: 8 | O27: 8.5 | P27: 24.83333333 | Q27: 22.8 | R27: 76 | S27: % | U27: 26.3 | V27: 87.66666667 | W27: % | Y27: 25.4 | Z27: 84.66666667 | AA27: %
A28: 47 | B28: Bregtje Hut / Troy | D28: Holland | E28: 7.5 | F28: 7.5 | G28: 8.9 | I28: 7 | J28: 8.5 | K28: 9 | M28: 8.3 | N28: 8.8 | O28: 8.8 | P28: 24.76666667 | Q28: =SUM(E28+I28+M28) -> 22.8 | R28: 76 | S28: % | T28: =IF(R28>74.9,"","IB") ->  | U28: =SUM(F28+J28+N28) -> 24.8 | V28: 82.66666667 | W28: % | X28: =IF(V28>74.9,"","IB") ->  | Y28: =SUM(G28+K28+O28) -> 26.7 | Z28: 89 | AA28: % | AB28: =IF(Z28>74.9,"","IB") -> 
A29: 37 | B29: Emmy Simonsen / The Charmed Ones'Biscuit in Blue | D29: Denmark | E29: 8.6 | F29: 7.9 | G29: 7.9 | I29: 8.5 | J29: 8.4 | K29: 8.5 | M29: 7.6 | N29: 8 | O29: 8.8 | P29: 24.73333333 | Q29: 24.7 | R29: 82.33333333 | S29: % | U29: 24.3 | V29: 81 | W29: % | Y29: 25.2 | Z29: 84 | AA29: %
A30: 13 | B30: Asako Otsuka / Prince-Pepper of Dancing Tail JP | C30: i | D30: Japan | E30: 8.4 | F30: 8.5 | G30: 7.8 | I30: 7.1 | J30: 8.7 | K30: 8.3 | M30: 7.4 | N30: 8.3 | O30: 8.7 | P30: 24.4 | Q30: 22.9 | R30: 76.33333333 | S30: % | U30: 25.5 | V30: 85 | W30: % | Y30: 24.8 | Z30: 82.66666667 | AA30: %
A31: 2 | B31: Nathalie Starner / Wenarjas Spirit of Ayax | D31: Sweden | E31: 7.2 | F31: 8.9 | G31: 8.9 | I31: 6.2 | J31: 8.5 | K31: 8.5 | M31: 7.7 | N31: 8 | O31: 8.5 | P31: 24.13333333 | Q31: 21.1 | R31: 70.33333333 | S31: % | T31: IB | U31: 25.4 | V31: 84.66666667 | W31: % | Y31: 25.9 | Z31: 86.33333333 | AA31: %
A32: 11 | B32: Sini Eriksson / Mutkis Onnensoturi | C32: i | D32: Finland | E32: 7.1 | F32: 9.1 | G32: 8.1 | I32: 5.3 | J32: 9.4 | K32: 9 | M32: 7.2 | N32: 8.5 | O32: 8.7 | P32: 24.13333333 | Q32: 19.6 | R32: 65.33333333 | S32: % | T32: IB | U32: 27 | V32: 90 | W32: % | Y32: 25.8 | Z32: 86 | AA32: %
A33: 22 | B33: Emmy Simonsen / Littlethorn Feet of Flames | D33: Denmark | E33: 8.8 | F33: 7.6 | G33: 7.4 | I33: 8.4 | J33: 7.6 | K33: 8.3 | M33: 7.5 | N33: 8.1 | O33: 8.6 | P33: 24.1 | Q33: 24.7 | R33: 82.33333333 | S33: % | U33: 23.3 | V33: 77.66666667 | W33: % | Y33: 24.3 | Z33: 81 | AA33: %
A34: 1 | B34: Vanda Gregorová/Anuška Vejvoda Dechristie | D34: Czech Republic | E34: 8.3 | F34: 9.2 | G34: 8.7 | I34: 6.9 | J34: 6.7 | K34: 7.3 | M34: 7.9 | N34: 8.5 | O34: 8.6 | P34: 24.03333333 | Q34: 23.1 | R34: 77 | U34: 24.4 | V34: 81.33333333 | Y34: 24.6 | Z34: 82
A35: 44 | B35: Sandra Kagevik / Hostgladjens Golden Dream | D35: Sweden | E35: 8.3 | F35: 7.8 | G35: 8 | I35: 8.4 | J35: 8 | K35: 7.4 | M35: 8.2 | N35: 7.8 | O35: 8.1 | P35: 24 | Q35: 24.9 | R35: 83 | U35: 23.6 | V35: 78.66666667 | Y35: 23.5 | Z35: 78.33333333
A36: 45 | B36: Carina Persson / Obetes Pop | D36: Sweden | E36: 7.2 | F36: 8 | G36: 8.4 | I36: 6.4 | J36: 8.6 | K36: 8.2 | M36: 7.5 | N36: 8.6 | O36: 9 | P36: 23.96666667 | Q36: 21.1 | R36: 70.33333333 | T36: IB | U36: 25.2 | V36: 84 | Y36: 25.6 | Z36: 85.33333333
A37: 42 | B37: Roger Buonocore / Cookies du Domaine de Joléa | C37: i | D37: France | E37: 8 | F37: 7.3 | G37: 7.9 | I37: 7.5 | J37: 7.7 | K37: 8.1 | M37: 7.7 | N37: 8.5 | O37: 9 | P37: 23.9 | Q37: 23.2 | R37: 77.33333333 | U37: 23.5 | V37: 78.33333333 | Y37: 25 | Z37: 83.33333333
A38: 33 | B38: Monika Ballerini / Nicolaj-Nioro v. Rotmonten | D38: Switzerland | E38: 8.5 | F38: 7.7 | G38: 7.2 | I38: 8 | J38: 7.5 | K38: 7.8 | M38: 8.1 | N38: 8.6 | O38: 8.3 | P38: 23.9 | Q38: 24.6 | R38: 82 | U38: 23.8 | V38: 79.33333333 | Y38: 23.3 | Z38: 77.66666667
A39: 29 | B39: Marian Smit / Sindy | D39: Holland | E39: 8.4 | F39: 6.9 | G39: 7.5 | I39: 8.7 | J39: 7.6 | K39: 8.1 | M39: 8 | N39: 7.5 | O39: 8.7 | P39: 23.8 | Q39: 25.1 | R39: 83.66666667 | U39: 22 | V39: 73.33333333 | X39: IB | Y39: 24.3 | Z39: 81
A40: 43 | B40: Lovisa Andersson / Trolla | D40: Sweden | E40: 7 | F40: 7.4 | G40: 7.7 | I40: 7.4 | J40: 8.4 | K40: 8.7 | M40: 7.5 | N40: 8.3 | O40: 9 | P40: 23.8 | Q40: 21.9 | R40: 73 | T40: IB | U40: 24.1 | V40: 80.33333333 | Y40: 25.4 | Z40: 84.66666667
A41: 24 | B41: Grietje Wagenaar / Fjurdyhoeve Floyd | D41: Holland | E41: 7.3 | F41: 7.7 | G41: 7.8 | I41: 7.5 | J41: 8.7 | K41: 8.1 | M41: 7.5 | N41: 8.2 | O41: 8.5 | P41: 23.76666667 | Q41: 22.3 | R41: 74.33333333 | T41: IB | U41: 24.6 | V41: 82 | Y41: 24.4 | Z41: 81.33333333
A42: 20 | B42: Christina Oxtoby / Legacy's Eze Ezekiel | D42: Great Britain | E42: 7.5 | F42: 7.2 | G42: 7.1 | I42: 8.2 | J42: 9 | K42: 8.4 | M42: 7.5 | N42: 8 | O42: 8.1 | P42: 23.66666667 | Q42: 23.2 | R42: 77.33333333 | U42: 24.2 | V42: 80.66666667 | Y42: 23.6 | Z42: 78.66666667
A43: 38 | B43: Hetty van Hassel / Detania the Wizz Kid | D43: Great Britain | E43: 7.5 | F43: 7.5 | G43: 7.7 | I43: 7 | J43: 8.3 | K43: 8 | M43: 7.5 | N43: 8.5 | O43: 9 | P43: 23.66666667 | Q43: 22 | R43: 73.33333333 | T43: IB | U43: 24.3 | V43: 81 | Y43: 24.7 | Z43: 82.33333333
A44: 27 | B44: Melanie Felix / Indian | D44: Germany | E44: 8.5 | F44: 6.9 | G44: 7.4 | I44: 6.9 | J44: 7.9 | K44: 8.4 | M44: 7.9 | N44: 8.5 | O44: 8 | P44: 23.46666667 | Q44: 23.3 | R44: 77.66666667 | U44: 23.3 | V44: 77.66666667 | Y44: 23.8 | Z44: 79.33333333
A45: 17 | B45: Lukas Pratschker / Falco out of the Dark | C45: i | D45: Austria | E45: 7.9 | F45: 7.2 | G45: 7.5 | I45: 7.1 | J45: 8.6 | K45: 8.2 | M45: 7.5 | N45: 8 | O45: 8.1 | P45: 23.36666667 | Q45: 22.5 | R45: 75 | U45: 23.8 | V45: 79.33333333 | Y45: 23.8 | Z45: 79.33333333
A46: 34 | B46: Brigitte van Gestel / Joyful Life van Benvenida's Joy | D46: Holland | E46: 7 | F46: 8.2 | G46: 8.5 | I46: 5.6 | J46: 7.5 | K46: 7.9 | M46: 7.5 | N46: 8.5 | O46: 9 | P46: 23.23333333 | Q46: 20.1 | R46: 67 | T46: IB | U46: 24.2 | V46: 80.66666667 | Y46: 25.4 | Z46: 84.66666667
A47: 30 | B47: Beate Lambrecht / Lower Saxon Abracadabra | D47: Germany | E47: 7.7 | F47: 7.7 | G47: 7.6 | I47: 8 | J47: 7.2 | K47: 8.1 | M47: 7.8 | N47: 7.3 | O47: 8.2 | P47: 23.2 | Q47: 23.5 | R47: 78.33333333 | U47: 22.2 | V47: 74 | X47: IB | Y47: 23.9 | Z47: 79.66666667
A48: 21 | B48: Arlette Cloes / Ginger van de Duvetorre | D48: Belgium | E48: 7.1 | F48: 6.8 | G48: 7.7 | I48: 7.5 | J48: 7.5 | K48: 8.5 | M48: 7.5 | N48: 8 | O48: 8.7 | P48: 23.1 | Q48: 22.1 | R48: 73.66666667 | T48: IB | U48: 22.3 | V48: 74.33333333 | X48: IB | Y48: 24.9 | Z48: 83
A49: 4 | B49: Minna Yrjana / Like a Hurricane Branwenn Brady | C49: i | D49: Finland | E49: 8.4 | F49: 7.8 | G49: 8.3 | I49: 7.2 | J49: 5.8 | K49: 7.4 | M49: 7.6 | N49: 7.8 | O49: 8.5 | P49: 22.93333333 | Q49: 23.2 | R49: 77.33333333 | U49: 21.4 | V49: 71.33333333 | X49: IB | Y49: 24.2 | Z49: 80.66666667
A50: 35 | B50: Luc Daems / Tchaka vom Terlüner Schloss | D50: Belgium | E50: 7.9 | F50: 7.2 | G50: 7.8 | I50: 5.9 | J50: 7.3 | K50: 6.7 | M50: 8.1 | N50: 8.3 | O50: 8.5 | P50: 22.56666667 | Q50: 21.9 | R50: 73 | T50: IB | U50: 22.8 | V50: 76 | Y50: 23 | Z50: 76.66666667
A51: 26 | B51: Jette Haastrup / Precenta´s Addi | D51: Denmark | E51: 8.2 | F51: 7.9 | G51: 8.9 | I51: 6.9 | J51: 7.2 | K51: 8.7 | M51: 6.4 | N51: 6.3 | O51: 6.1 | P51: 22.2 | Q51: 21.5 | R51: 71.66666667 | T51: IB | U51: 21.4 | V51: 71.33333333 | X51: IB | Y51: 23.7 | Z51: 79
A52: 10 | B52: Monika Gehrke / Nice of you to Come Bye Gigolo Jan | D52: Germany | E52: 6.5 | F52: 6.5 | G52: 6.7 | I52: 6.1 | J52: 8.2 | K52: 8.3 | M52: 7.4 | N52: 8.1 | O52: 8.7 | P52: 22.16666667 | Q52: 20 | R52: 66.66666667 | T52: IB | U52: 22.8 | V52: 76 | Y52: 23.7 | Z52: 79
A53: 14 | B53: Johanna Allanach / Kojima E-Physical Graffiti | D53: Denmark | E53: 7.5 | F53: 7.8 | G53: 7.7 | I53: 7 | J53: 8.4 | K53: 7.7 | M53: 6.4 | N53: 6.3 | O53: 7.1 | P53: 21.96666667 | Q53: 20.9 | R53: 69.66666667 | T53: IB | U53: 22.5 | V53: 75 | Y53: 22.5 | Z53: 75
A54: 25 | B54: Lisa Joachimsky / Foxita | D54: Germany | E54: 7.4 | F54: 7.1 | G54: 7.3 | I54: 6.4 | J54: 6.3 | K54: 7 | M54: 7.5 | N54: 7.9 | O54: 8.2 | P54: 21.7 | Q54: 21.3 | R54: 71 | T54: IB | U54: 21.3 | V54: 71 | X54: IB | Y54: 22.5 | Z54: 75
A55: 7 | B55: Myriam Alvarez / Caveri Avergisson | C55: i | D55: France | E55: 7.8 | F55: 6.7 | G55: 7.9 | I55: 6.9 | J55: 6.5 | K55: 7.7 | M55: 6.6 | N55: 6.3 | O55: 7.1 | P55: 21.16666667 | Q55: 21.3 | R55: 71 | T55: IB | U55: 19.5 | V55: 65 | X55: IB | Y55: 22.7 | Z55: 75.66666667
A56: 6 | B56: Alexandra Vavrová / Herbie | C56: i | D56: Slovakia | E56: 6.1 | F56: 5.9 | G56: 7.4 | I56: 6 | J56: 6.4 | K56: 7.4 | M56: 6 | N56: 6.2 | O56: 7 | P56: 19.46666667 | Q56: 18.1 | R56: 60.33333333 | T56: IB | U56: 18.5 | V56: 61.66666667 | X56: IB | Y56: 21.8 | Z56: 72.66666667 | AB56: IB
A57: 41 | B57: Jackie de Jong / Jackie's Indi | D57: Great Britain | E57: 5.9 | F57: 5.9 | G57: 6.4 | I57: 5.5 | J57: 6.4 | K57: 7.5 | M57: 6.6 | N57: 6.7 | O57: 7.2 | P57: 19.36666667
A58: 40 | B58: Veronika Koth / Cliff of Sunny Pleasure | C58: i | D58: Austria | E58: 5.9 | F58: 5.8 | G58: 6.2 | I58: 5.1 | J58: 7.1 | K58: 7.5 | M58: 6.6 | N58: 6.3 | O58: 7.1 | P58: 19.2
A59: 5 | B59: Aurélie Devulder/Divine | C59: i | D59: France | E59: 4.6 | F59: 5.6 | G59: 5.7 | I59: 5 | J59: 5.6 | K59: 5.1 | M59: 5.5 | N59: 6 | O59: 6.9 | P59: 16.66666667
A60: 15 | B60: Christiane Gioanni / Eldorado Columbian Rush de Solemel | C60: i | D60: France | E60: 5.3 | F60: 5.4 | G60: 6 | I60: 4 | J60: 5.2 | K60: 5 | M60: 5.8 | N60: 6 | O60: 6.9 | P60: 16.53333333
A61: 8 | B61: Marianne Rensch / Mose di Villa Federici | D61: Switzerland | E61: 3.2 | F61: 4.6 | G61: 5 | I61: 4.1 | J61: 5.1 | K61: 5.7 | M61: 5.7 | N61: 6 | O61: 6.7 | P61: 15.36666667
A62: 48 | B62: Minna Yrjana / Like a Hurricane Dyna Dora | C62: i | D62: Finland | P62: =(E62+F62+G62+I62+J62+K62+M62+N62+O62)/3 -> 0

Sheet Final points
A1: OEC FS Final Points
E2: Johanna Saariluoma (FI) | I2: Claudia Moser (CH) | M2: Wies Koelewijn (NL)
E3: Presentation/accuracy | F3: Content/degree of difficulty | G3: Musical interpretation | I3: Presentation/accuracy | J3: Content/degree of difficulty | K3: Musical interpretation | M3: Presentation/accuracy | N3: Content/degree of difficulty | O3: Musical interpretation
B11: Handler / dog | D11: Country
A12: 1 | B12: =FS!B15 -> Marina Novoselova / Funnewf Gloria Day | D12: =FS!D15 -> Russia | E12: 9.1 | F12: 9.1 | G12: 9.2 | I12: 8.9 | J12: 8.9 | K12: 9.2 | M12: 9 | N12: 8.5 | O12: 9 | P12: =(E12+F12+G12+I12+J12+K12+M12+N12+O12)/3 -> 26.96666667 | Q12: 3
A13: 2 | B13: =FS!B16 -> Vanda Gregorová/All That Brandy Gentle Mate | D13: =FS!D16 -> Czech Republic | E13: 9.3 | F13: 8.5 | G13: 9 | I13: 9.3 | J13: 9.1 | K13: 9.2 | M13: 8.9 | N13: 8.7 | O13: 9.2 | P13: 27.06666667 | Q13: 7
A14: 3 | B14: =FS!B17 -> Polina Ilina / HardyHeart du Val de Vent Dore | D14: =FS!D17 -> Russia | E14: 8.7 | F14: 8.7 | G14: 9 | I14: 8.4 | J14: 8.9 | K14: 8.8 | M14: 8.6 | N14: 8.3 | O14: 9 | P14: 26.13333333 | Q14: 1
A15: 4 | B15: =FS!B18 -> Monika Olšovská / Arsinoé z Ríše Wa | D15: =FS!D18 -> Slovakia | E15: 9 | F15: 8.7 | G15: 8.9 | I15: 9.6 | J15: 9.4 | K15: 9.4 | M15: 9.2 | N15: 8.7 | O15: 9.2 | P15: 27.36666667 | Q15: 10
A16: 5 | B16: =FS!B19 -> Polina Ilina / Shteffi | D16: =FS!D19 -> Russia | E16: 8.4 | F16: 9 | G16: 8.7 | I16: 8.6 | J16: 8.9 | K16: 9.1 | M16: 8.5 | N16: 8.3 | O16: 9 | P16: 26.16666667 | Q16: 5
A17: 6 | B17: =FS!B20 -> Daniela Šišková/Aurora Piranha Rainy Love | D17: =FS!D20 -> Czech Republic | E17: 9 | F17: 8.7 | G17: 8.5 | I17: 9.1 | J17: 9.1 | K17: 9.2 | M17: 8.9 | N17: 8.6 | O17: 9.2 | P17: 26.76666667 | Q17: 9
A18: 7 | B18: =FS!B21 -> Kath Hardman / September Spice | D18: =FS!D21 -> Great Britain | E18: 8.5 | F18: 9.1 | G18: 9.2 | I18: 8.1 | J18: 8.9 | K18: 8.5 | M18: 8.5 | N18: 8.1 | O18: 9 | P18: 25.96666667 | Q18: 6
A19: 8 | B19: =FS!B22 -> Monika Ballerini / Cassy zum Krähenhorst | D19: =FS!D22 -> Switzerland | E19: 8.7 | F19: 7 | G19: 8.4 | I19: 8.8 | J19: 8.4 | K19: 8.9 | M19: 8.5 | N19: 8.6 | O19: 8.7 | P19: 25.33333333 | Q19: 8
A20: 9 | B20: =FS!B23 -> Linda de Smet / Eby of Sun Floch Valley | D20: =FS!D23 -> Belgium | E20: 8.5 | F20: 8 | G20: 8.2 | I20: 8.1 | J20: 9 | K20: 8.8 | M20: 7.9 | N20: 8.6 | O20: 9 | P20: 25.36666667 | Q20: 4
A21: 10 | B21: =FS!B24 -> Jules O'Dwyer / Fjurdyhoeve Flynn | D21: =FS!D24 -> Belgium | E21: 8.8 | F21: 7.2 | G21: 8.4 | I21: 8.9 | J21: 9.1 | K21: 9.2 | M21: 9.1 | N21: 8.7 | O21: 9.2 | P21: 26.2 | Q21: 2

Sheet Results
B1: FS Results
A5: Judge 1 | C5: Johanna Saariluoma (FI)
A7: Judge 2 | C7: Claudia Moser (CH)
A9: Judge 3 | C9: Wies Koelewijn (NL)
I11: Final points
B12: Country | C12: Handler/dog | D12: 1 | E12: 2 | F12: 3 | G12: Points | I12: 1 | J12: 2 | K12: 3 | L12: Points | M12: Total Result
A13: 1 | B13: =FS!D15 -> Russia | C13: =FS!B15 -> Marina Novoselova / Funnewf Gloria Day | D13: =(FS!E15+FS!F15+FS!G15) -> 27.8 | E13: =(FS!I15+FS!J15+FS!K15) -> 27.3 | F13: =(FS!M15+FS!N15+FS!O15) -> 26.5 | G13: =(D13+E13+F13)/3 -> 27.2 | I13: =('Final points'!E12+'Final points'!F12+'Final points'!G12) -> 27.4 | J13: =('Final points'!I12+'Final points'!J12+'Final points'!K12) -> 27 | K13: =('Final points'!M12+'Final points'!N12+'Final points'!O12) -> 26.5 | L13: =(I13+J13+K13)/3 -> 26.96666667 | M13: =(G13+L13) -> 54.16666667 | N13: 1
A14: 2 | B14: =FS!D16 -> Czech Republic | C14: =FS!B16 -> Vanda Gregorová/All That Brandy Gentle Mate | D14: =(FS!E16+FS!F16+FS!G16) -> 27.6 | E14: =(FS!I16+FS!J16+FS!K16) -> 26.3 | F14: =(FS!M16+FS!N16+FS!O16) -> 27 | G14: =(D14+E14+F14)/3 -> 26.96666667 | I14: =('Final points'!E13+'Final points'!F13+'Final points'!G13) -> 26.8 | J14: =('Final points'!I13+'Final points'!J13+'Final points'!K13) -> 27.6 | K14: =('Final points'!M13+'Final points'!N13+'Final points'!O13) -> 26.8 | L14: =(I14+J14+K14)/3 -> 27.06666667 | M14: =(G14+L14) -> 54.03333333 | N14: 2
A15: 3 | B15: =FS!D17 -> Russia | C15: =FS!B17 -> Polina Ilina / HardyHeart du Val de Vent Dore | D15: =(FS!E17+FS!F17+FS!G17) -> 27 | E15: =(FS!I17+FS!J17+FS!K17) -> 27.2 | F15: =(FS!M17+FS!N17+FS!O17) -> 26.2 | G15: =(D15+E15+F15)/3 -> 26.8 | I15: =('Final points'!E14+'Final points'!F14+'Final points'!G14) -> 26.4 | J15: =('Final points'!I14+'Final points'!J14+'Final points'!K14) -> 26.1 | K15: =('Final points'!M14+'Final points'!N14+'Final points'!O14) -> 25.9 | L15: 26.13333333 | M15: 52.93333333 | N15: 4
A16: 4 | B16: =FS!D18 -> Slovakia | C16: =FS!B18 -> Monika Olšovská / Arsinoé z Ríše Wa | D16: =(FS!E18+FS!F18+FS!G18) -> 26 | E16: =(FS!I18+FS!J18+FS!K18) -> 27.1 | F16: =(FS!M18+FS!N18+FS!O18) -> 26.9 | G16: =(D16+E16+F16)/3 -> 26.66666667 | I16: =('Final points'!E15+'Final points'!F15+'Final points'!G15) -> 26.6 | J16: =('Final points'!I15+'Final points'!J15+'Final points'!K15) -> 28.4 | K16: =('Final points'!M15+'Final points'!N15+'Final points'!O15) -> 27.1 | L16: 27.36666667 | M16: 54.03333333 | N16: 2
A17: 5 | B17: =FS!D19 -> Russia | C17: =FS!B19 -> Polina Ilina / Shteffi | D17: =(FS!E19+FS!F19+FS!G19) -> 27.1 | E17: =(FS!I19+FS!J19+FS!K19) -> 25.9 | F17: =(FS!M19+FS!N19+FS!O19) -> 25.6 | G17: 26.2 | I17: =('Final points'!E16+'Final points'!F16+'Final points'!G16) -> 26.1 | J17: =('Final points'!I16+'Final points'!J16+'Final points'!K16) -> 26.6 | K17: =('Final points'!M16+'Final points'!N16+'Final points'!O16) -> 25.8 | L17: 26.16666667 | M17: 52.36666667 | N17: 6
A18: 6 | B18: =FS!D20 -> Czech Republic | C18: =FS!B20 -> Daniela Šišková/Aurora Piranha Rainy Love | D18: =(FS!E20+FS!F20+FS!G20) -> 25.5 | E18: =(FS!I20+FS!J20+FS!K20) -> 26.2 | F18: =(FS!M20+FS!N20+FS!O20) -> 26.7 | G18: 26.13333333 | I18: =('Final points'!E17+'Final points'!F17+'Final points'!G17) -> 26.2 | J18: =('Final points'!I17+'Final points'!J17+'Final points'!K17) -> 27.4 | K18: =('Final points'!M17+'Final points'!N17+'Final points'!O17) -> 26.7 | L18: 26.76666667 | M18: 52.9 | N18: 5
A19: 7 | B19: =FS!D21 -> Great Britain | C19: =FS!B21 -> Kath Hardman / September Spice | D19: =(FS!E21+FS!F21+FS!G21) -> 25.8 | E19: =(FS!I21+FS!J21+FS!K21) -> 25.6 | F19: =(FS!M21+FS!N21+FS!O21) -> 25.6 | G19: 25.66666667 | I19: =('Final points'!E18+'Final points'!F18+'Final points'!G18) -> 26.8 | J19: =('Final points'!I18+'Final points'!J18+'Final points'!K18) -> 25.5 | K19: =('Final points'!M18+'Final points'!N18+'Final points'!O18) -> 25.6 | L19: 25.96666667 | M19: 51.63333333 | N19: 8
A20: 8 | B20: =FS!D22 -> Switzerland | C20: =FS!B22 -> Monika Ballerini / Cassy zum Krähenhorst | D20: =(FS!E22+FS!F22+FS!G22) -> 24.5 | E20: =(FS!I22+FS!J22+FS!K22) -> 26.4 | F20: =(FS!M22+FS!N22+FS!O22) -> 25.8 | G20: 25.56666667 | I20: =('Final points'!E19+'Final points'!F19+'Final points'!G19) -> 24.1 | J20: =('Final points'!I19+'Final points'!J19+'Final points'!K19) -> 26.1 | K20: =('Final points'!M19+'Final points'!N19+'Final points'!O19) -> 25.8 | L20: 25.33333333 | M20: 50.9 | N20: 9
A21: 9 | B21: =FS!D23 -> Belgium | C21: =FS!B23 -> Linda de Smet / Eby of Sun Floch Valley | D21: =(FS!E23+FS!F23+FS!G23) -> 24.9 | E21: =(FS!I23+FS!J23+FS!K23) -> 26.7 | F21: =(FS!M23+FS!N23+FS!O23) -> 25 | G21: 25.53333333 | I21: =('Final points'!E20+'Final points'!F20+'Final points'!G20) -> 24.7 | J21: =('Final points'!I20+'Final points'!J20+'Final points'!K20) -> 25.9 | K21: =('Final points'!M20+'Final points'!N20+'Final points'!O20) -> 25.5 | L21: 25.36666667 | M21: 50.9 | N21: 9
A22: 10 | B22: =FS!D24 -> Belgium | C22: =FS!B24 -> Jules O'Dwyer / Fjurdyhoeve Flynn | D22: =(FS!E24+FS!F24+FS!G24) -> 22.6 | E22: =(FS!I24+FS!J24+FS!K24) -> 26.9 | F22: =(FS!M24+FS!N24+FS!O24) -> 27 | G22: 25.5 | I22: =('Final points'!E21+'Final points'!F21+'Final points'!G21) -> 24.4 | J22: =('Final points'!I21+'Final points'!J21+'Final points'!K21) -> 27.2 | K22: =('Final points'!M21+'Final points'!N21+'Final points'!O21) -> 27 | L22: 26.2 | M22: 51.7 | N22: 7
A23: 11 | B23: =FS!D25 -> Czech Republic | C23: =FS!B25 -> Lucie Smolíková/A White Head Tender Flash | D23: =(FS!E25+FS!F25+FS!G25) -> 25.4 | E23: =(FS!I25+FS!J25+FS!K25) -> 25.2 | F23: =(FS!M25+FS!N25+FS!O25) -> 24.4 | G23: 25
A24: 12 | B24: =FS!D26 -> Russia | C24: =FS!B26 -> Ekatarina Myznikova / Pradas House Artist and Denser | D24: =(FS!E26+FS!F26+FS!G26) -> 22.7 | E24: =(FS!I26+FS!J26+FS!K26) -> 26 | F24: =(FS!M26+FS!N26+FS!O26) -> 26.1 | G24: 24.93333333
A25: 13 | B25: =FS!D27 -> Switzerland | C25: =FS!B27 -> Yvonne Belin / Jewel del Mulino Prudenza | D25: =(FS!E27+FS!F27+FS!G27) -> 23.9 | E25: =(FS!I27+FS!J27+FS!K27) -> 26.5 | F25: =(FS!M27+FS!N27+FS!O27) -> 24.1 | G25: 24.83333333
A26: 14 | B26: =FS!D28 -> Holland | C26: =FS!B28 -> Bregtje Hut / Troy | D26: =(FS!E28+FS!F28+FS!G28) -> 23.9 | E26: =(FS!I28+FS!J28+FS!K28) -> 24.5 | F26: =(FS!M28+FS!N28+FS!O28) -> 25.9 | G26: 24.76666667
A27: 15 | B27: =FS!D29 -> Denmark | C27: =FS!B29 -> Emmy Simonsen / The Charmed Ones'Biscuit in Blue | D27: =(FS!E29+FS!F29+FS!G29) -> 24.4 | E27: =(FS!I29+FS!J29+FS!K29) -> 25.4 | F27: =(FS!M29+FS!N29+FS!O29) -> 24.4 | G27: 24.73333333
A28: 16 | B28: =FS!D30 -> Japan | C28: =FS!B30 -> Asako Otsuka / Prince-Pepper of Dancing Tail JP | D28: =(FS!E30+FS!F30+FS!G30) -> 24.7 | E28: =(FS!I30+FS!J30+FS!K30) -> 24.1 | F28: =(FS!M30+FS!N30+FS!O30) -> 24.4 | G28: 24.4
A29: 17 | B29: =FS!D31 -> Sweden | C29: =FS!B31 -> Nathalie Starner / Wenarjas Spirit of Ayax | D29: =(FS!E31+FS!F31+FS!G31) -> 25 | E29: =(FS!I31+FS!J31+FS!K31) -> 23.2 | F29: =(FS!M31+FS!N31+FS!O31) -> 24.2 | G29: 24.13333333
A30: 18 | B30: =FS!D32 -> Finland | C30: =FS!B32 -> Sini Eriksson / Mutkis Onnensoturi | D30: =(FS!E32+FS!F32+FS!G32) -> 24.3 | E30: =(FS!I32+FS!J32+FS!K32) -> 23.7 | F30: =(FS!M32+FS!N32+FS!O32) -> 24.4 | G30: 24.13333333
A31: 19 | B31: =FS!D33 -> Denmark | C31: =FS!B33 -> Emmy Simonsen / Littlethorn Feet of Flames | D31: =(FS!E33+FS!F33+FS!G33) -> 23.8 | E31: =(FS!I33+FS!J33+FS!K33) -> 24.3 | F31: =(FS!M33+FS!N33+FS!O33) -> 24.2 | G31: 24.1
A32: 20 | B32: =FS!D34 -> Czech Republic | C32: =FS!B34 -> Vanda Gregorová/Anuška Vejvoda Dechristie | D32: =(FS!E34+FS!F34+FS!G34) -> 26.2 | E32: =(FS!I34+FS!J34+FS!K34) -> 20.9 | F32: =(FS!M34+FS!N34+FS!O34) -> 25 | G32: =(D32+E32+F32)/3 -> 24.03333333
A33: 21 | B33: =FS!D35 -> Sweden | C33: =FS!B35 -> Sandra Kagevik / Hostgladjens Golden Dream | D33: =(FS!E35+FS!F35+FS!G35) -> 24.1 | E33: =(FS!I35+FS!J35+FS!K35) -> 23.8 | F33: =(FS!M35+FS!N35+FS!O35) -> 24.1 | G33: =(D33+E33+F33)/3 -> 24
A34: 22 | B34: =FS!D36 -> Sweden | C34: =FS!B36 -> Carina Persson / Obetes Pop | D34: =(FS!E36+FS!F36+FS!G36) -> 23.6 | E34: =(FS!I36+FS!J36+FS!K36) -> 23.2 | F34: =(FS!M36+FS!N36+FS!O36) -> 25.1 | G34: 23.96666667
A35: 23 | B35: =FS!D37 -> France | C35: =FS!B37 -> Roger Buonocore / Cookies du Domaine de Joléa | D35: =(FS!E37+FS!F37+FS!G37) -> 23.2 | E35: =(FS!I37+FS!J37+FS!K37) -> 23.3 | F35: =(FS!M37+FS!N37+FS!O37) -> 25.2 | G35: 23.9
A36: 24 | B36: =FS!D38 -> Switzerland | C36: =FS!B38 -> Monika Ballerini / Nicolaj-Nioro v. Rotmonten | D36: =(FS!E38+FS!F38+FS!G38) -> 23.4 | E36: =(FS!I38+FS!J38+FS!K38) -> 23.3 | F36: =(FS!M38+FS!N38+FS!O38) -> 25 | G36: 23.9
A37: 25 | B37: =FS!D39 -> Holland | C37: =FS!B39 -> Marian Smit / Sindy | D37: =(FS!E39+FS!F39+FS!G39) -> 22.8 | E37: =(FS!I39+FS!J39+FS!K39) -> 24.4 | F37: =(FS!M39+FS!N39+FS!O39) -> 24.2 | G37: 23.8
A38: 26 | B38: =FS!D40 -> Sweden | C38: =FS!B40 -> Lovisa Andersson / Trolla | D38: =(FS!E40+FS!F40+FS!G40) -> 22.1 | E38: =(FS!I40+FS!J40+FS!K40) -> 24.5 | F38: =(FS!M40+FS!N40+FS!O40) -> 24.8 | G38: 23.8
A39: 27 | B39: =FS!D41 -> Holland | C39: =FS!B41 -> Grietje Wagenaar / Fjurdyhoeve Floyd | D39: =(FS!E41+FS!F41+FS!G41) -> 22.8 | E39: =(FS!I41+FS!J41+FS!K41) -> 24.3 | F39: =(FS!M41+FS!N41+FS!O41) -> 24.2 | G39: 23.76666667
A40: 28 | B40: =FS!D42 -> Great Britain | C40: =FS!B42 -> Christina Oxtoby / Legacy's Eze Ezekiel | D40: =(FS!E42+FS!F42+FS!G42) -> 21.8 | E40: =(FS!I42+FS!J42+FS!K42) -> 25.6 | F40: =(FS!M42+FS!N42+FS!O42) -> 23.6 | G40: 23.66666667
A41: 29 | B41: =FS!D43 -> Great Britain | C41: =FS!B43 -> Hetty van Hassel / Detania the Wizz Kid | D41: =(FS!E43+FS!F43+FS!G43) -> 22.7 | E41: =(FS!I43+FS!J43+FS!K43) -> 23.3 | F41: =(FS!M43+FS!N43+FS!O43) -> 25 | G41: 23.66666667
A42: 30 | B42: =FS!D44 -> Germany | C42: =FS!B44 -> Melanie Felix / Indian | D42: =(FS!E44+FS!F44+FS!G44) -> 22.8 | E42: =(FS!I44+FS!J44+FS!K44) -> 23.2 | F42: =(FS!M44+FS!N44+FS!O44) -> 24.4 | G42: 23.46666667
A43: 31 | B43: =FS!D45 -> Austria | C43: =FS!B45 -> Lukas Pratschker / Falco out of the Dark | D43: =(FS!E45+FS!F45+FS!G45) -> 22.6 | E43: =(FS!I45+FS!J45+FS!K45) -> 23.9 | F43: =(FS!M45+FS!N45+FS!O45) -> 23.6 | G43: 23.36666667
A44: 32 | B44: =FS!D46 -> Holland | C44: =FS!B46 -> Brigitte van Gestel / Joyful Life van Benvenida's Joy | D44: =(FS!E46+FS!F46+FS!G46) -> 23.7 | E44: =(FS!I46+FS!J46+FS!K46) -> 21 | F44: =(FS!M46+FS!N46+FS!O46) -> 25 | G44: 23.23333333
A45: 33 | B45: =FS!D47 -> Germany | C45: =FS!B47 -> Beate Lambrecht / Lower Saxon Abracadabra | D45: =(FS!E47+FS!F47+FS!G47) -> 23 | E45: =(FS!I47+FS!J47+FS!K47) -> 23.3 | F45: =(FS!M47+FS!N47+FS!O47) -> 23.3 | G45: 23.2
A46: 34 | B46: =FS!D48 -> Belgium | C46: =FS!B48 -> Arlette Cloes / Ginger van de Duvetorre | D46: =(FS!E48+FS!F48+FS!G48) -> 21.6 | E46: =(FS!I48+FS!J48+FS!K48) -> 23.5 | F46: =(FS!M48+FS!N48+FS!O48) -> 24.2 | G46: 23.1
A47: 35 | B47: =FS!D49 -> Finland | C47: =FS!B49 -> Minna Yrjana / Like a Hurricane Branwenn Brady | D47: =(FS!E49+FS!F49+FS!G49) -> 24.5 | E47: =(FS!I49+FS!J49+FS!K49) -> 20.4 | F47: =(FS!M49+FS!N49+FS!O49) -> 23.9 | G47: 22.93333333
A48: 36 | B48: =FS!D50 -> Belgium | C48: =FS!B50 -> Luc Daems / Tchaka vom Terlüner Schloss | D48: =(FS!E50+FS!F50+FS!G50) -> 22.9 | E48: =(FS!I50+FS!J50+FS!K50) -> 19.9 | F48: =(FS!M50+FS!N50+FS!O50) -> 24.9 | G48: 22.56666667
A49: 37 | B49: =FS!D51 -> Denmark | C49: =FS!B51 -> Jette Haastrup / Precenta´s Addi | D49: =(FS!E51+FS!F51+FS!G51) -> 25 | E49: =(FS!I51+FS!J51+FS!K51) -> 22.8 | F49: =(FS!M51+FS!N51+FS!O51) -> 18.8 | G49: 22.2
A50: 38 | B50: =FS!D52 -> Germany | C50: =FS!B52 -> Monika Gehrke / Nice of you to Come Bye Gigolo Jan | D50: =(FS!E52+FS!F52+FS!G52) -> 19.7 | E50: =(FS!I52+FS!J52+FS!K52) -> 22.6 | F50: =(FS!M52+FS!N52+FS!O52) -> 24.2 | G50: 22.16666667
A51: 39 | B51: =FS!D53 -> Denmark | C51: =FS!B53 -> Johanna Allanach / Kojima E-Physical Graffiti | D51: =(FS!E53+FS!F53+FS!G53) -> 23 | E51: =(FS!I53+FS!J53+FS!K53) -> 23.1 | F51: =(FS!M53+FS!N53+FS!O53) -> 19.8 | G51: 21.96666667
A52: 40 | B52: =FS!D54 -> Germany | C52: =FS!B54 -> Lisa Joachimsky / Foxita | D52: =(FS!E54+FS!F54+FS!G54) -> 21.8 | E52: =(FS!I54+FS!J54+FS!K54) -> 19.7 | F52: =(FS!M54+FS!N54+FS!O54) -> 23.6 | G52: 21.7
A53: 42 | B53: =FS!D55 -> France | C53: =FS!B55 -> Myriam Alvarez / Caveri Avergisson | D53: =(FS!E55+FS!F55+FS!G55) -> 22.4 | E53: =(FS!I55+FS!J55+FS!K55) -> 21.1 | F53: =(FS!M55+FS!N55+FS!O55) -> 20 | G53: 21.16666667
A54: 43 | B54: =FS!D56 -> Slovakia | C54: =FS!B56 -> Alexandra Vavrová / Herbie | D54: =(FS!E56+FS!F56+FS!G56) -> 19.4 | E54: =(FS!I56+FS!J56+FS!K56) -> 19.8 | F54: =(FS!M56+FS!N56+FS!O56) -> 19.2 | G54: 19.46666667
A55: 44 | B55: =FS!D57 -> Great Britain | C55: =FS!B57 -> Jackie de Jong / Jackie's Indi | D55: =(FS!E57+FS!F57+FS!G57) -> 18.2 | E55: =(FS!I57+FS!J57+FS!K57) -> 19.4 | F55: =(FS!M57+FS!N57+FS!O57) -> 20.5 | G55: 19.36666667
A56: 45 | B56: =FS!D58 -> Austria | C56: =FS!B58 -> Veronika Koth / Cliff of Sunny Pleasure | D56: =(FS!E58+FS!F58+FS!G58) -> 17.9 | E56: =(FS!I58+FS!J58+FS!K58) -> 19.7 | F56: =(FS!M58+FS!N58+FS!O58) -> 20 | G56: 19.2
A57: 46 | B57: =FS!D59 -> France | C57: =FS!B59 -> Aurélie Devulder/Divine | D57: =(FS!E59+FS!F59+FS!G59) -> 15.9 | E57: =(FS!I59+FS!J59+FS!K59) -> 15.7 | F57: =(FS!M59+FS!N59+FS!O59) -> 18.4 | G57: 16.66666667
A58: 47 | B58: =FS!D60 -> France | C58: =FS!B60 -> Christiane Gioanni / Eldorado Columbian Rush de Solemel | D58: =(FS!E60+FS!F60+FS!G60) -> 16.7 | E58: =(FS!I60+FS!J60+FS!K60) -> 14.2 | F58: =(FS!M60+FS!N60+FS!O60) -> 18.7 | G58: 16.53333333
A59: 48 | B59: =FS!D61 -> Switzerland | C59: =FS!B61 -> Marianne Rensch / Mose di Villa Federici | D59: =(FS!E61+FS!F61+FS!G61) -> 12.8 | E59: =(FS!I61+FS!J61+FS!K61) -> 14.9 | F59: =(FS!M61+FS!N61+FS!O61) -> 18.4 | G59: 15.36666667
A60: 49 | B60: =FS!D62 -> Finland | C60: =FS!B62 -> Minna Yrjana / Like a Hurricane Dyna Dora | D60: =(FS!E62+FS!F62+FS!G62) -> 0 | E60: =(FS!I62+FS!J62+FS!K62) -> 0 | F60: =(FS!M62+FS!N62+FS!O62) -> 0 | G60: 0

Sheet Team results
A1: FS OEC Team Results
A2: Country | B2: Handler/dog | C2: Points | D2: Total points | E2: Place
A3: Belgium | B3: Jules O'Dwyer / Fjurdyhoeve Flynn | C3: 25.5 | D3: =LARGE(C3:C6,1)+LARGE(C3:C6,2)+LARGE(C3:C6,3) -> 74.13
A4: Belgium | B4: Linda de Smet / Eby of Sun Floch Valley | C4: 25.53 | D4: =LARGE(C3:C6,1)+LARGE(C3:C6,2)+LARGE(C3:C6,3) -> 74.13 | E4: 4
A5: Belgium | B5: Arlette Cloes / Ginger van de Duvetorre | C5: 23.1 | D5: =LARGE(C3:C6,1)+LARGE(C3:C6,2)+LARGE(C3:C6,3) -> 74.13
A6: Belgium | B6: Luc Daems / Tchaka vom Terlüner Schloss | C6: 22.57 | D6: =LARGE(C3:C6,1)+LARGE(C3:C6,2)+LARGE(C3:C6,3) -> 74.13
A7: Denmark | B7: Johanna Allanach / Kojima E-Physical Graffiti | C7: 21.97 | D7: =LARGE(C7:C10,1)+LARGE(C7:C10,2)+LARGE(C7:C10,3) -> 71.03
A8: Denmark | B8: Emmy Simonsen / The Charmed Ones'Biscuit in Blue | C8: 24.73 | D8: =LARGE(C7:C10,1)+LARGE(C7:C10,2)+LARGE(C7:C10,3) -> 71.03 | E8: 8
A9: Denmark | B9: Emmy Simonsen / Littlethorn Feet of Flames | C9: 24.1 | D9: =LARGE(C7:C10,1)+LARGE(C7:C10,2)+LARGE(C7:C10,3) -> 71.03
A10: Denmark | B10: Jette Haastrup / Precenta´s Addi | C10: 22.2 | D10: =LARGE(C7:C10,1)+LARGE(C7:C10,2)+LARGE(C7:C10,3) -> 71.03
A11: Czech Republic | B11: Vanda Gregorová/All That Brandy Gentle Mate | C11: 26.97
A12: Czech Republic | B12: Vanda Gregorová/Anuška Vejvoda Dechristie | C12: 24.03 | D12: =LARGE(C11:C14,1)+LARGE(C11:C14,2)+LARGE(C11:C14,3) -> 78.1 | E12: 2
A13: Czech Republic | B13: Daniela Šišková/Aurora Piranha Rainy Love | C13: 26.13
A14: Czech Republic | B14: Lucie Smolíková/A White Head Tender Flash | C14: 25
A15: Germany | B15: Monika Gehrke / Nice of you to Come Bye Gigolo Jan | C15: 22.17 | D15: =LARGE(C15:C18,1)+LARGE(C15:C18,2)+LARGE(C15:C18,3) -> 68.84
A16: Germany | B16: Lisa Joachimsky / Foxita | C16: 21.7 | D16: =LARGE(C15:C18,1)+LARGE(C15:C18,2)+LARGE(C15:C18,3) -> 68.84 | E16: 9
A17: Germany | B17: Beate Lambrecht / Lower Saxon Abracadabra | C17: 23.2 | D17: =LARGE(C15:C18,1)+LARGE(C15:C18,2)+LARGE(C15:C18,3) -> 68.84
A18: Germany | B18: Melanie Felix / Indian | C18: 23.47 | D18: =LARGE(C15:C18,1)+LARGE(C15:C18,2)+LARGE(C15:C18,3) -> 68.84
A19: Great Britain | B19: Kath Hardman / September Spice | C19: 25.67 | D19: =LARGE(C19:C22,1)+LARGE(C19:C22,2)+LARGE(C19:C22,3) -> 73.01
A20: Great Britain | B20: Jackie de Jong / Jackie's Indi | C20: 19.37 | D20: =LARGE(C19:C22,1)+LARGE(C19:C22,2)+LARGE(C19:C22,3) -> 73.01 | E20: 5
A21: Great Britain | B21: Chrisina Oxtoby / Legacy's Eze Ezekiel | C21: 23.67 | D21: =LARGE(C19:C22,1)+LARGE(C19:C22,2)+LARGE(C19:C22,3) -> 73.01
A22: Great Britain | B22: Hetty van Hassel / Detania the Wizz Kid | C22: 23.67 | D22: =LARGE(C19:C22,1)+LARGE(C19:C22,2)+LARGE(C19:C22,3) -> 73.01
A23: Holland | B23: Grietje Wagenaar / Fjurdyhoeve Floyd | C23: 23.77 | D23: =LARGE(C23:C26,1)+LARGE(C23:C26,2)+LARGE(C23:C26,3) -> 72.34
A24: Holland | B24: Brigitte van Gestel / Joyful Life van Benvenida's Joy | C24: 23.23 | D24: =LARGE(C23:C26,1)+LARGE(C23:C26,2)+LARGE(C23:C26,3) -> 72.34 | E24: 6
A25: Holland | B25: Bregtje Hut / Troy | C25: 24.77 | D25: =LARGE(C23:C26,1)+LARGE(C23:C26,2)+LARGE(C23:C26,3) -> 72.34
A26: Holland | B26: Marian Smit / Sindy | C26: 23.8 | D26: =LARGE(C23:C26,1)+LARGE(C23:C26,2)+LARGE(C23:C26,3) -> 72.34
A27: Russia | B27: Ekatarina Myznikova / Pradas House Artist and Denser | C27: 24.93 | D27: =LARGE(C27:C30,1)+LARGE(C27:C30,2)+LARGE(C27:C30,3) -> 80.2
A28: Russia | B28: Marina Novoselova / Funnewf Gloria Day | C28: 27.2 | D28: =LARGE(C27:C30,1)+LARGE(C27:C30,2)+LARGE(C27:C30,3) -> 80.2 | E28: 1
A29: Russia | B29: Polina Ilina / Shteffi | C29: 26.2 | D29: =LARGE(C27:C30,1)+LARGE(C27:C30,2)+LARGE(C27:C30,3) -> 80.2
A30: Russia | B30: Polina Ilina / HardyHeart du Val de Vent Dore | C30: 26.8 | D30: =LARGE(C27:C30,1)+LARGE(C27:C30,2)+LARGE(C27:C30,3) -> 80.2
A31: Sweden | B31: Sandra Kagevik / Hostgladjens Golden Dream | C31: 24
A32: Sweden | B32: Carina Persson / Obetes Pop | C32: 23.97 | D32: =LARGE(C31:C34,1)+LARGE(C31:C34,2)+LARGE(C31:C34,3) -> 72.1 | E32: 7
A33: Sweden | B33: Nathalie Starner / Wenarjas Spirit of Ayax | C33: 24.13 | D33: =LARGE(C31:C33,1)+LARGE(C31:C33,2)+LARGE(C31:C33,3) -> 72.1
A34: Sweden | B34: Lovisa Andersson / Trolla | C34: 23.8
A35: Switzerland | B35: Yvonne Belin / Jewel del Mulino Prudenza | C35: 24.83 | D35: =LARGE(C35:C38,1)+LARGE(C35:C38,2)+LARGE(C35:C38,3) -> 74.3
A36: Switzerland | B36: Monika Ballerini / Nicolaj-Nioro v. Rotmonten | C36: 23.9 | D36: =LARGE(C35:C38,1)+LARGE(C35:C38,2)+LARGE(C35:C38,3) -> 74.3 | E36: 3
A37: Switzerland | B37: Monika Ballerini / Cassy zum Krähenhorst | C37: 25.57 | D37: =LARGE(C35:C38,1)+LARGE(C35:C38,2)+LARGE(C35:C38,3) -> 74.3
A38: Switzerland | B38: Marianne Rensch / Mose di Villa Federici | C38: 15.37 | D38: =LARGE(C35:C38,1)+LARGE(C35:C38,2)+LARGE(C35:C38,3) -> 74.3
E45: SwitzB

Sheet Starting order
A2: Handler / dog | C2: Country | D2: start | E2: Music
D3: 1
D4: 2
D5: 3
D6: 4
D7: 5
D8: 6
D9: 7
D10: 8
D11: 9
D12: 10
D13: 11
D14: 12
D15: 13
D16: 14
D17: 15
D18: 16
D19: 17
D20: 18
D21: 19
D22: 20
D23: 21
D24: 22
D25: 23
D26: 24
D27: 25
D28: 26
D29: 27
D30: 28
D31: 29
D32: 30
D33: 31
D34: 32
D35: 33
D36: 34
D37: 35
D38: 36
D39: 37
D40: 38
D41: 39
D42: 40
D43: 41
D44: 42
D45: 43
D46: 44
D47: 45

Sheet Reserve
A2: Handler / dog | C2: Country | D2: Music
A3: Herlinde Jans/Flower Power | C3: Belgium
A4: Annette Klink Dalgaard/Ophian Giggly Gucci Go-Getter | C4: Denmark
A5: Anja Jakob/dancing little Shadow of Fast Crazy Fly | C5: Germany
A6: Karen Sykes/Our Irish Second Chance | C6: Great Britain
A7: Aniek Oerlemans/Indy | C7: Holland
A8: Yvonne Reinli/Joyce | C8: Switzerland
A9: Linnéa Vejde / Force Galaxie's Furst Wolf | C9: Sweden
A10: Galina Chogovadze / Moja Nadezhda Rolly Royce | C10: Russia
